[Event "Late-Titled-Tuesday-Blitz-October-24-2023"]
[Site "Chess.com"]
[Date "2023.10.24"]
[Round "8"]
[White "mjelcic"]
[Black "Balla_Tamas"]
[Result "0-1"]
[WhiteElo "2149"]
[BlackElo "2340"]
[TimeControl "180+1"]
[EndTime "15:25:31 PDT"]
[Termination "Balla_Tamas won by resignation"]

1. c4 {[%clk 0:03:00.9]} 1... c5 {[%clk 0:02:59]} 2. Nc3 {[%clk 0:02:58.8]} 2...
Nc6 {[%clk 0:02:59.1]} 3. g3 {[%clk 0:02:58.2]} 3... g6 {[%clk 0:02:59]} 4. Bg2
{[%clk 0:02:58.4]} 4... Bg7 {[%clk 0:02:58.9]} 5. e4 {[%clk 0:02:58.9]} 5... e6
{[%clk 0:02:58.5]} 6. Nge2 {[%clk 0:02:59.1]} 6... Nge7 {[%clk 0:02:58.3]} 7.
O-O {[%clk 0:02:59.7]} 7... d6 {[%clk 0:02:56.9]} 8. d4 {[%clk 0:02:59.5]} 8...
cxd4 {[%clk 0:02:56.3]} 9. Nb5 {[%clk 0:02:59.7]} 9... e5 {[%clk 0:02:53.8]} 10.
f4 {[%clk 0:02:52.4]} 10... O-O {[%clk 0:02:52.4]} 11. c5 {[%clk 0:02:51.2]}
11... dxc5 {[%clk 0:02:46.3]} 12. f5 {[%clk 0:02:46.5]} 12... gxf5 {[%clk
0:02:43.9]} 13. Bg5 {[%clk 0:02:46.4]} 13... Qb6 {[%clk 0:02:32.5]} 14. Na3
{[%clk 0:02:45.1]} 14... fxe4 {[%clk 0:02:22.3]} 15. Bxe4 {[%clk 0:02:43.6]}
15... f5 {[%clk 0:02:21.8]} 16. Bd3 {[%clk 0:02:39.3]} 16... Be6 {[%clk
0:02:15.9]} 17. Nc4 {[%clk 0:02:31.1]} 17... Qc7 {[%clk 0:02:07.6]} 18. Rc1
{[%clk 0:02:15]} 18... e4 {[%clk 0:01:42.1]} 19. Nf4 {[%clk 0:02:14.3]} 19...
Bf7 {[%clk 0:01:35.1]} 20. Be2 {[%clk 0:02:07.1]} 20... d3 {[%clk 0:01:31.2]}
21. Bh5 {[%clk 0:02:07.1]} 21... Nd4 {[%clk 0:01:22.2]} 22. Bxf7+ {[%clk
0:02:04.9]} 22... Rxf7 {[%clk 0:01:21.9]} 23. Ne3 {[%clk 0:01:54.2]} 23... Qe5
{[%clk 0:01:15.2]} 24. Bxe7 {[%clk 0:01:44.3]} 24... Qxe7 {[%clk 0:01:10.3]} 25.
Nfd5 {[%clk 0:01:38.6]} 25... Qe5 {[%clk 0:01:08.5]} 26. Rxc5 {[%clk 0:01:35.9]}
26... Ne2+ {[%clk 0:01:05.9]} 27. Kh1 {[%clk 0:01:32.7]} 27... b6 {[%clk
0:01:05.5]} 28. Rc6 {[%clk 0:01:24.4]} 28... Rd8 {[%clk 0:00:59.7]} 29. Qa4
{[%clk 0:01:23.4]} 29... Rxd5 {[%clk 0:00:51.4]} 30. Nxd5 {[%clk 0:01:21.1]}
30... Qxd5 {[%clk 0:00:51.6]} 31. Rc8+ {[%clk 0:01:20.6]} 31... Bf8 {[%clk
0:00:51.5]} 32. Qb3 {[%clk 0:01:15.4]} 32... Qb7 {[%clk 0:00:49.7]} 33. Rxf5
{[%clk 0:00:56.9]} 33... e3+ {[%clk 0:00:44.9]} 34. Qd5 {[%clk 0:00:56.9]} 34...
Qxd5+ {[%clk 0:00:33.7]} 35. Rxd5 {[%clk 0:00:57.8]} 35... d2 {[%clk 0:00:31.3]}
36. Rdd8 {[%clk 0:00:55.3]} 36... Rf1+ {[%clk 0:00:30]} 37. Kg2 {[%clk
0:00:54.9]} 37... d1=Q {[%clk 0:00:29.9]} 38. Rxd1 {[%clk 0:00:51.3]} 38... Rxd1
{[%clk 0:00:30.8]} 39. Kf3 {[%clk 0:00:51.5]} 39... Rd2 {[%clk 0:00:23.7]} 40.
Kxe3 {[%clk 0:00:51]} 40... Rxb2 {[%clk 0:00:23.8]} 0-1

[Event "Late-Titled-Tuesday-Blitz-October-24-2023"]
[Site "Chess.com"]
[Date "2023.10.24"]
[Round "8"]
[White "expii"]
[Black "katharinareinecke"]
[Result "1/2-1/2"]
[WhiteElo "2208"]
[BlackElo "1877"]
[TimeControl "180+1"]
[EndTime "15:25:39 PDT"]
[Termination "Game drawn by repetition"]

1. e4 {[%clk 0:03:00.1]} 1... c6 {[%clk 0:03:00.3]} 2. d4 {[%clk 0:02:57.1]}
2... d5 {[%clk 0:03:00.8]} 3. f3 {[%clk 0:02:57.8]} 3... dxe4 {[%clk 0:02:56.6]}
4. fxe4 {[%clk 0:02:58.7]} 4... e6 {[%clk 0:02:51.6]} 5. Nf3 {[%clk 0:02:56.4]}
5... Nf6 {[%clk 0:02:47]} 6. Nc3 {[%clk 0:02:54.4]} 6... Bb4 {[%clk 0:02:46.4]}
7. Bd3 {[%clk 0:02:46.6]} 7... O-O {[%clk 0:02:37.5]} 8. O-O {[%clk 0:02:35.1]}
8... c5 {[%clk 0:02:36.7]} 9. Be3 {[%clk 0:02:13.4]} 9... cxd4 {[%clk
0:02:32.5]} 10. Bxd4 {[%clk 0:02:14.3]} 10... Nc6 {[%clk 0:02:32.4]} 11. Bf2
{[%clk 0:02:12.3]} 11... Bxc3 {[%clk 0:02:29.2]} 12. bxc3 {[%clk 0:02:13.2]}
12... b6 {[%clk 0:02:24.4]} 13. h3 {[%clk 0:02:03.6]} 13... Bb7 {[%clk
0:02:22.4]} 14. Re1 {[%clk 0:01:59.3]} 14... Rc8 {[%clk 0:02:19.9]} 15. Qe2
{[%clk 0:01:55.4]} 15... Na5 {[%clk 0:02:18.1]} 16. Rad1 {[%clk 0:01:48.8]}
16... Qc7 {[%clk 0:02:12.6]} 17. Bd4 {[%clk 0:01:35.5]} 17... Kh8 {[%clk
0:01:48.6]} 18. Bxf6 {[%clk 0:01:32.7]} 18... gxf6 {[%clk 0:01:48.5]} 19. Qd2
{[%clk 0:01:23.2]} 19... Rg8 {[%clk 0:01:47.3]} 20. Qh6 {[%clk 0:01:04.9]} 20...
Rg6 {[%clk 0:01:44.6]} 21. Qh4 {[%clk 0:00:57]} 21... Rcg8 {[%clk 0:01:43.2]}
22. Re2 {[%clk 0:00:57.3]} 22... Qg3 {[%clk 0:01:27.8]} 23. Qxg3 {[%clk
0:00:55.8]} 23... Rxg3 {[%clk 0:01:27.4]} 24. Kh2 {[%clk 0:00:55.7]} 24... Nc6
{[%clk 0:01:15.2]} 25. Nd4 {[%clk 0:00:48]} 25... Ne5 {[%clk 0:01:11.1]} 26. Rf1
{[%clk 0:00:38.7]} 26... R8g6 {[%clk 0:00:58.3]} 27. Nf3 {[%clk 0:00:25.2]}
27... Kg7 {[%clk 0:00:47.8]} 28. Nxe5 {[%clk 0:00:23.4]} 28... fxe5 {[%clk
0:00:47.6]} 29. Ref2 {[%clk 0:00:24.3]} 29... Kh6 {[%clk 0:00:39.8]} 30. c4
{[%clk 0:00:23.4]} 30... Bc8 {[%clk 0:00:27.5]} 31. Rxf7 {[%clk 0:00:22.3]}
31... Rxg2+ {[%clk 0:00:26.8]} 32. Kh1 {[%clk 0:00:20.3]} 32... R2g3 {[%clk
0:00:24.7]} 33. Kh2 {[%clk 0:00:18.4]} 33... Rg2+ {[%clk 0:00:24.3]} 34. Kh1
{[%clk 0:00:18.8]} 34... R2g3 {[%clk 0:00:24.6]} 35. Kh2 {[%clk 0:00:18.9]}
35... Rg2+ {[%clk 0:00:25]} 1/2-1/2

[Event "Late-Titled-Tuesday-Blitz-October-24-2023"]
[Site "Chess.com"]
[Date "2023.10.24"]
[Round "8"]
[White "giomar27"]
[Black "Willi_Skibbe"]
[Result "1-0"]
[WhiteElo "2371"]
[BlackElo "2204"]
[TimeControl "180+1"]
[EndTime "15:25:40 PDT"]
[Termination "giomar27 won by resignation"]

1. Nc3 {[%clk 0:03:00.9]} 1... d5 {[%clk 0:02:56.2]} 2. Nf3 {[%clk 0:03:01.6]}
2... Nf6 {[%clk 0:02:53.9]} 3. d3 {[%clk 0:03:02]} 3... Bg4 {[%clk 0:02:47.7]}
4. g3 {[%clk 0:02:55]} 4... Bxf3 {[%clk 0:02:46.8]} 5. exf3 {[%clk 0:02:55.2]}
5... e6 {[%clk 0:02:46.9]} 6. Bg2 {[%clk 0:02:55.6]} 6... c6 {[%clk 0:02:45.5]}
7. O-O {[%clk 0:02:56.1]} 7... Nbd7 {[%clk 0:02:46]} 8. f4 {[%clk 0:02:56.7]}
8... Bd6 {[%clk 0:02:46.7]} 9. b3 {[%clk 0:02:45]} 9... O-O {[%clk 0:02:45]} 10.
Bb2 {[%clk 0:02:45.7]} 10... e5 {[%clk 0:02:45.6]} 11. fxe5 {[%clk 0:02:45.4]}
11... Bxe5 {[%clk 0:02:45.4]} 12. f4 {[%clk 0:02:44.7]} 12... Bd4+ {[%clk
0:02:45.1]} 13. Kh1 {[%clk 0:02:44.1]} 13... Qa5 {[%clk 0:02:38.8]} 14. Qd2
{[%clk 0:02:34.2]} 14... Rae8 {[%clk 0:02:33.7]} 15. a3 {[%clk 0:02:33.7]} 15...
Ng4 {[%clk 0:02:32.2]} 16. b4 {[%clk 0:02:33.1]} 16... Qb6 {[%clk 0:02:32.2]}
17. Na4 {[%clk 0:02:32.3]} 17... Qb5 {[%clk 0:02:17.1]} 18. Bxd4 {[%clk
0:02:31.5]} 18... Qxa4 {[%clk 0:02:17.4]} 19. h3 {[%clk 0:02:28.5]} 19... Ngf6
{[%clk 0:02:15.4]} 20. Qc3 {[%clk 0:02:24.3]} 20... Re2 {[%clk 0:02:08.5]} 21.
Rf2 {[%clk 0:02:23.5]} 21... Rfe8 {[%clk 0:02:07.7]} 22. Raf1 {[%clk 0:02:18.9]}
22... Nh5 {[%clk 0:02:02.7]} 23. Kh2 {[%clk 0:02:17.5]} 23... a5 {[%clk
0:01:47.3]} 24. Bf3 {[%clk 0:02:16.5]} 24... Rxf2+ {[%clk 0:01:45]} 25. Rxf2
{[%clk 0:02:17.2]} 25... axb4 {[%clk 0:01:44.3]} 26. axb4 {[%clk 0:02:07.6]}
26... Nhf6 {[%clk 0:01:41.6]} 27. g4 {[%clk 0:02:07.7]} 27... b6 {[%clk
0:01:24.1]} 28. g5 {[%clk 0:02:07.5]} 28... c5 {[%clk 0:01:24.5]} 29. bxc5
{[%clk 0:02:01.1]} 29... bxc5 {[%clk 0:01:24.6]} 30. Bxf6 {[%clk 0:02:00.8]}
30... Qxf4+ {[%clk 0:01:15.4]} 31. Kg2 {[%clk 0:01:50.4]} 31... gxf6 {[%clk
0:01:10.5]} 32. gxf6 {[%clk 0:01:39.6]} 32... Qxf6 {[%clk 0:00:57.7]} 33. Qb3
{[%clk 0:01:23.7]} 33... d4 {[%clk 0:00:46.4]} 34. Bg4 {[%clk 0:01:22.6]} 34...
Qc6+ {[%clk 0:00:43.4]} 35. Bf3 {[%clk 0:01:21.2]} 35... Qg6+ {[%clk 0:00:35.6]}
36. Kh2 {[%clk 0:01:21.5]} 36... Kf8 {[%clk 0:00:33.6]} 37. Qd5 {[%clk
0:01:07.5]} 37... Ne5 {[%clk 0:00:27.3]} 38. Qxc5+ {[%clk 0:01:07]} 38... Kg7
{[%clk 0:00:19.9]} 39. Be4 {[%clk 0:01:00.8]} 39... Qh5 {[%clk 0:00:14.8]} 40.
Qxd4 {[%clk 0:00:57.2]} 40... f6 {[%clk 0:00:15.1]} 41. Rg2+ {[%clk 0:00:56.3]}
41... Kh8 {[%clk 0:00:14.1]} 42. Qf2 {[%clk 0:00:54.6]} 42... Rg8 {[%clk
0:00:12.6]} 43. Qxf6+ {[%clk 0:00:54.2]} 1-0

[Event "Late-Titled-Tuesday-Blitz-October-24-2023"]
[Site "Chess.com"]
[Date "2023.10.24"]
[Round "8"]
[White "NowInChess"]
[Black "PNEPaul"]
[Result "1/2-1/2"]
[WhiteElo "2163"]
[BlackElo "1858"]
[TimeControl "180+1"]
[EndTime "15:25:45 PDT"]
[Termination "Game drawn by repetition"]

1. e4 {[%clk 0:03:00.9]} 1... e5 {[%clk 0:02:59.4]} 2. Nf3 {[%clk 0:02:59.8]}
2... Nc6 {[%clk 0:02:59.3]} 3. d4 {[%clk 0:02:59.9]} 3... exd4 {[%clk
0:02:58.4]} 4. Bc4 {[%clk 0:03:00.1]} 4... Be7 {[%clk 0:02:58.4]} 5. Nxd4 {[%clk
0:02:58]} 5... d6 {[%clk 0:02:58.3]} 6. Nxc6 {[%clk 0:02:56.7]} 6... bxc6 {[%clk
0:02:57.4]} 7. Nc3 {[%clk 0:02:57.1]} 7... Nf6 {[%clk 0:02:57.4]} 8. Bf4 {[%clk
0:02:51.5]} 8... O-O {[%clk 0:02:56.3]} 9. Qd2 {[%clk 0:02:47.8]} 9... Be6
{[%clk 0:02:55.8]} 10. Bb3 {[%clk 0:02:31.1]} 10... Bxb3 {[%clk 0:02:54.1]} 11.
axb3 {[%clk 0:02:28.5]} 11... d5 {[%clk 0:02:52.2]} 12. exd5 {[%clk 0:02:18.5]}
12... cxd5 {[%clk 0:02:52.1]} 13. O-O {[%clk 0:02:08.2]} 13... c6 {[%clk
0:02:50.5]} 14. Rfe1 {[%clk 0:02:01.4]} 14... Bb4 {[%clk 0:02:43.4]} 15. Ra4
{[%clk 0:01:42.9]} 15... a5 {[%clk 0:02:41]} 16. Qd3 {[%clk 0:01:28.2]} 16...
Ne4 {[%clk 0:02:11.2]} 17. f3 {[%clk 0:01:25.2]} 17... Nc5 {[%clk 0:02:07.9]}
18. Qd4 {[%clk 0:01:13.1]} 18... Nxa4 {[%clk 0:02:06.5]} 19. bxa4 {[%clk
0:01:13.7]} 19... Bxc3 {[%clk 0:01:59.8]} 20. Qxc3 {[%clk 0:01:05.8]} 20... Qf6
{[%clk 0:01:54.2]} 21. Be5 {[%clk 0:00:59.9]} 21... Qg6 {[%clk 0:01:54.3]} 22.
Bd4 {[%clk 0:00:46.3]} 22... Rfe8 {[%clk 0:01:43]} 23. Be5 {[%clk 0:00:32.1]}
23... f6 {[%clk 0:01:32.8]} 24. Bg3 {[%clk 0:00:32]} 24... Rxe1+ {[%clk
0:01:30.9]} 25. Qxe1 {[%clk 0:00:31.1]} 25... Qe8 {[%clk 0:01:23]} 26. Qc3
{[%clk 0:00:21.4]} 26... Qd7 {[%clk 0:01:16.5]} 27. b3 {[%clk 0:00:18.5]} 27...
d4 {[%clk 0:01:10.2]} 28. Qc4+ {[%clk 0:00:16.5]} 28... Qd5 {[%clk 0:01:09.6]}
29. Qd3 {[%clk 0:00:14.7]} 29... Re8 {[%clk 0:01:03.9]} 30. Qd2 {[%clk
0:00:13.1]} 30... h6 {[%clk 0:00:52.4]} 31. h4 {[%clk 0:00:09.1]} 31... Rd8
{[%clk 0:00:51.4]} 32. Kh2 {[%clk 0:00:08.4]} 32... Rd7 {[%clk 0:00:50.2]} 33.
Qd3 {[%clk 0:00:07.4]} 33... c5 {[%clk 0:00:42.4]} 34. Qg6 {[%clk 0:00:06.7]}
34... Qf7 {[%clk 0:00:40.1]} 35. Qe4 {[%clk 0:00:06.5]} 35... Qd5 {[%clk
0:00:39.7]} 36. Qg6 {[%clk 0:00:06.6]} 36... Qf7 {[%clk 0:00:39.5]} 37. Qe4
{[%clk 0:00:06.7]} 37... Qd5 {[%clk 0:00:39.2]} 38. Qg6 {[%clk 0:00:06.9]}
1/2-1/2

[Event "Late-Titled-Tuesday-Blitz-October-24-2023"]
[Site "Chess.com"]
[Date "2023.10.24"]
[Round "8"]
[White "santosalberto1987"]
[Black "jcmesafischer"]
[Result "0-1"]
[WhiteElo "2415"]
[BlackElo "2334"]
[TimeControl "180+1"]
[EndTime "15:25:46 PDT"]
[Termination "jcmesafischer won by checkmate"]

1. e4 {[%clk 0:03:00.9]} 1... c5 {[%clk 0:02:50.8]} 2. Nf3 {[%clk 0:03:00.5]}
2... d6 {[%clk 0:02:45.5]} 3. Bb5+ {[%clk 0:03:00.2]} 3... Bd7 {[%clk
0:02:42.3]} 4. Bxd7+ {[%clk 0:02:59.3]} 4... Qxd7 {[%clk 0:02:42.6]} 5. c4
{[%clk 0:03:00.1]} 5... Nf6 {[%clk 0:02:40.7]} 6. Nc3 {[%clk 0:03:00]} 6... g6
{[%clk 0:02:35.1]} 7. d4 {[%clk 0:02:59.8]} 7... cxd4 {[%clk 0:02:33.3]} 8. Nxd4
{[%clk 0:03:00.7]} 8... Bg7 {[%clk 0:02:17.6]} 9. f3 {[%clk 0:02:54.4]} 9... Nc6
{[%clk 0:02:16.6]} 10. Be3 {[%clk 0:02:53.4]} 10... Nxd4 {[%clk 0:02:16.5]} 11.
Bxd4 {[%clk 0:02:52.8]} 11... O-O {[%clk 0:02:16.8]} 12. b3 {[%clk 0:02:51.6]}
12... Ne8 {[%clk 0:02:16.7]} 13. O-O {[%clk 0:02:47.9]} 13... Nc7 {[%clk
0:02:15]} 14. Rc1 {[%clk 0:02:44.2]} 14... b5 {[%clk 0:02:14.8]} 15. Bxg7 {[%clk
0:02:39.1]} 15... Kxg7 {[%clk 0:02:14.9]} 16. Nd5 {[%clk 0:02:37.5]} 16... bxc4
{[%clk 0:02:10.6]} 17. Rxc4 {[%clk 0:02:32.2]} 17... Nxd5 {[%clk 0:02:09.6]} 18.
Qxd5 {[%clk 0:02:33.1]} 18... Rac8 {[%clk 0:02:04.3]} 19. Rfc1 {[%clk 0:02:33]}
19... Rxc4 {[%clk 0:02:03.3]} 20. Qxc4 {[%clk 0:02:30.9]} 20... e6 {[%clk
0:01:59.9]} 21. Qc7 {[%clk 0:02:29.6]} 21... Rd8 {[%clk 0:01:56.1]} 22. Qxd7
{[%clk 0:02:28.9]} 22... Rxd7 {[%clk 0:01:57]} 23. Kf2 {[%clk 0:02:29.1]} 23...
d5 {[%clk 0:01:56.9]} 24. exd5 {[%clk 0:02:29.2]} 24... Rxd5 {[%clk 0:01:57.8]}
25. Ke3 {[%clk 0:02:29.4]} 25... Re5+ {[%clk 0:01:55.6]} 26. Kd3 {[%clk
0:02:27.9]} 26... Rd5+ {[%clk 0:01:55.8]} 27. Kc3 {[%clk 0:02:24.8]} 27... e5
{[%clk 0:01:39.8]} 28. b4 {[%clk 0:02:24.3]} 28... Kf6 {[%clk 0:01:34.5]} 29.
Kb3 {[%clk 0:02:23.3]} 29... Rd2 {[%clk 0:01:30.4]} 30. Rc2 {[%clk 0:02:23.4]}
30... Rd3+ {[%clk 0:01:14.2]} 31. Kc4 {[%clk 0:02:20.4]} 31... Ra3 {[%clk
0:01:11.6]} 32. Kd5 {[%clk 0:02:16]} 32... Rd3+ {[%clk 0:01:10.1]} 33. Kc6
{[%clk 0:02:13.6]} 33... Ra3 {[%clk 0:01:09.9]} 34. b5 {[%clk 0:02:13.4]} 34...
Ke6 {[%clk 0:01:08.2]} 35. b6 {[%clk 0:02:11]} 35... axb6 {[%clk 0:01:07.9]} 36.
Kxb6 {[%clk 0:02:11.1]} 36... f5 {[%clk 0:01:01.5]} 37. Kb5 {[%clk 0:02:11.1]}
37... e4 {[%clk 0:00:48.5]} 38. fxe4 {[%clk 0:02:10.7]} 38... fxe4 {[%clk
0:00:49.4]} 39. Kb4 {[%clk 0:02:10.7]} 39... Ra8 {[%clk 0:00:49.4]} 40. a4
{[%clk 0:02:10.8]} 40... Ke5 {[%clk 0:00:43.7]} 41. a5 {[%clk 0:02:03.7]} 41...
e3 {[%clk 0:00:41.5]} 42. Rc7 {[%clk 0:01:59.4]} 42... Kd6 {[%clk 0:00:28.9]}
43. Rc1 {[%clk 0:01:47.5]} 43... Kd5 {[%clk 0:00:27.9]} 44. Kc3 {[%clk 0:01:21]}
44... Rxa5 {[%clk 0:00:26]} 45. Kd3 {[%clk 0:01:21.5]} 45... Ra3+ {[%clk
0:00:26.1]} 46. Ke2 {[%clk 0:01:21.8]} 46... Kd4 {[%clk 0:00:25.8]} 47. Rc7
{[%clk 0:01:09.6]} 47... Ra2+ {[%clk 0:00:23.3]} 48. Kf1 {[%clk 0:01:08.7]}
48... Rf2+ {[%clk 0:00:22.5]} 49. Kg1 {[%clk 0:01:08.7]} 49... Rf6 {[%clk
0:00:17.1]} 50. Rxh7 {[%clk 0:01:04]} 50... e2 {[%clk 0:00:16.8]} 51. Re7 {[%clk
0:01:02.1]} 51... Rf1# {[%clk 0:00:16.8]} 0-1

[Event "Late-Titled-Tuesday-Blitz-October-24-2023"]
[Site "Chess.com"]
[Date "2023.10.24"]
[Round "8"]
[White "Witik"]
[Black "vugarrasulov"]
[Result "1-0"]
[WhiteElo "2822"]
[BlackElo "2989"]
[TimeControl "180+1"]
[EndTime "15:25:49 PDT"]
[Termination "Witik won by checkmate"]

1. e4 {[%clk 0:03:00]} 1... c5 {[%clk 0:02:59.5]} 2. d4 {[%clk 0:03:00.5]} 2...
cxd4 {[%clk 0:02:59.5]} 3. c3 {[%clk 0:03:01.2]} 3... d5 {[%clk 0:02:58.3]} 4.
exd5 {[%clk 0:02:59.8]} 4... Nf6 {[%clk 0:02:58.6]} 5. Bb5+ {[%clk 0:02:43]}
5... Bd7 {[%clk 0:02:57.3]} 6. Bc4 {[%clk 0:02:42.4]} 6... b5 {[%clk 0:02:46.2]}
7. Bb3 {[%clk 0:02:42]} 7... dxc3 {[%clk 0:02:46.4]} 8. Nxc3 {[%clk 0:02:41.9]}
8... b4 {[%clk 0:02:45.7]} 9. Nce2 {[%clk 0:02:35.8]} 9... g6 {[%clk 0:02:44.4]}
10. Nf3 {[%clk 0:02:28.2]} 10... Bg7 {[%clk 0:02:44.3]} 11. O-O {[%clk
0:02:28.8]} 11... O-O {[%clk 0:02:44]} 12. Ned4 {[%clk 0:02:16]} 12... a5 {[%clk
0:02:41.6]} 13. a4 {[%clk 0:02:12.1]} 13... Bc8 {[%clk 0:02:26.8]} 14. Ne5
{[%clk 0:02:07.7]} 14... Bb7 {[%clk 0:02:22]} 15. Ndc6 {[%clk 0:01:52]} 15...
Nxc6 {[%clk 0:01:48.4]} 16. dxc6 {[%clk 0:01:36.3]} 16... Ba6 {[%clk 0:01:48.8]}
17. Re1 {[%clk 0:01:26.3]} 17... Qxd1 {[%clk 0:01:33.9]} 18. Rxd1 {[%clk
0:01:26.3]} 18... e6 {[%clk 0:01:31.7]} 19. Bg5 {[%clk 0:01:03]} 19... Rfc8
{[%clk 0:01:25.2]} 20. f4 {[%clk 0:00:45.4]} 20... Ne4 {[%clk 0:01:19.3]} 21.
Be7 {[%clk 0:00:45.5]} 21... g5 {[%clk 0:01:07.1]} 22. Rd7 {[%clk 0:00:29.5]}
22... gxf4 {[%clk 0:00:59.3]} 23. Re1 {[%clk 0:00:29.8]} 23... Bxe5 {[%clk
0:00:46.9]} 24. Rxe4 {[%clk 0:00:30]} 24... Bxb2 {[%clk 0:00:47.6]} 25. c7
{[%clk 0:00:28.7]} 25... e5 {[%clk 0:00:37.1]} 26. Bf6 {[%clk 0:00:27.6]} 26...
Bb7 {[%clk 0:00:33.8]} 27. Bxf7+ {[%clk 0:00:20.2]} 27... Kf8 {[%clk 0:00:33.5]}
28. Be6 {[%clk 0:00:15.7]} 28... Bxe4 {[%clk 0:00:28.9]} 29. Rg7 {[%clk
0:00:12.3]} 29... Bd4+ {[%clk 0:00:25.3]} 30. Kh1 {[%clk 0:00:11.1]} 30... Rxc7
{[%clk 0:00:22.2]} 31. Rg8# {[%clk 0:00:10.6]} 1-0

[Event "Late-Titled-Tuesday-Blitz-October-24-2023"]
[Site "Chess.com"]
[Date "2023.10.24"]
[Round "8"]
[White "CraiggoryC"]
[Black "Nekoo04"]
[Result "1-0"]
[WhiteElo "2202"]
[BlackElo "2254"]
[TimeControl "180+1"]
[EndTime "15:25:53 PDT"]
[Termination "CraiggoryC won by resignation"]

1. e4 {[%clk 0:02:58.2]} 1... c5 {[%clk 0:02:33.3]} 2. Nf3 {[%clk 0:02:57.4]}
2... d6 {[%clk 0:02:33.3]} 3. d4 {[%clk 0:02:55.9]} 3... cxd4 {[%clk 0:02:34.2]}
4. Nxd4 {[%clk 0:02:56.7]} 4... Nf6 {[%clk 0:02:34.9]} 5. Nc3 {[%clk 0:02:57.4]}
5... g6 {[%clk 0:02:35.5]} 6. Be3 {[%clk 0:02:57.8]} 6... Bg7 {[%clk 0:02:35.8]}
7. f3 {[%clk 0:02:58.4]} 7... Nc6 {[%clk 0:02:35.7]} 8. Qd2 {[%clk 0:02:58.9]}
8... O-O {[%clk 0:02:36]} 9. Bc4 {[%clk 0:02:59.6]} 9... Bd7 {[%clk 0:02:36.1]}
10. O-O-O {[%clk 0:02:59.1]} 10... Rb8 {[%clk 0:02:36.7]} 11. h4 {[%clk
0:02:52.4]} 11... b5 {[%clk 0:02:32.6]} 12. Bb3 {[%clk 0:02:45.9]} 12... Na5
{[%clk 0:02:30.9]} 13. h5 {[%clk 0:02:34.2]} 13... Nc4 {[%clk 0:02:08.4]} 14.
Bxc4 {[%clk 0:02:31.4]} 14... bxc4 {[%clk 0:02:09.3]} 15. Bh6 {[%clk 0:02:15.6]}
15... Bxh6 {[%clk 0:02:04.4]} 16. Qxh6 {[%clk 0:02:10.9]} 16... Qb6 {[%clk
0:02:04.9]} 17. b3 {[%clk 0:01:35.2]} 17... Qa5 {[%clk 0:02:02.2]} 18. Nd5
{[%clk 0:01:04.3]} 18... Nxd5 {[%clk 0:00:51.3]} 19. exd5 {[%clk 0:00:46.4]}
19... Qxa2 {[%clk 0:00:20.4]} 20. Rh4 {[%clk 0:00:25.6]} 20... g5 {[%clk
0:00:06.7]} 21. Qxg5+ {[%clk 0:00:25.6]} 21... Kh8 {[%clk 0:00:06.8]} 22. Qxe7
{[%clk 0:00:16.7]} 22... f6 {[%clk 0:00:05.2]} 23. h6 {[%clk 0:00:10.1]} 23...
Rg8 {[%clk 0:00:02.5]} 24. Qxf6+ {[%clk 0:00:09.4]} 1-0

[Event "Late-Titled-Tuesday-Blitz-October-24-2023"]
[Site "Chess.com"]
[Date "2023.10.24"]
[Round "8"]
[White "Binary010"]
[Black "Mikedannnn"]
[Result "0-1"]
[WhiteElo "2820"]
[BlackElo "2586"]
[TimeControl "180+1"]
[EndTime "15:25:59 PDT"]
[Termination "Mikedannnn won on time"]

1. e4 {[%clk 0:03:00.9]} 1... c5 {[%clk 0:02:59.9]} 2. Nf3 {[%clk 0:03:01]} 2...
e6 {[%clk 0:03:00.2]} 3. d4 {[%clk 0:02:59.9]} 3... cxd4 {[%clk 0:03:01.1]} 4.
Nxd4 {[%clk 0:03:00.5]} 4... Nc6 {[%clk 0:03:01.7]} 5. Nc3 {[%clk 0:03:00.8]}
5... Qc7 {[%clk 0:03:02]} 6. Be3 {[%clk 0:02:59.6]} 6... a6 {[%clk 0:03:02.1]}
7. a3 {[%clk 0:02:59.1]} 7... Nf6 {[%clk 0:03:01.7]} 8. f4 {[%clk 0:02:58.9]}
8... d6 {[%clk 0:03:01.1]} 9. Qf3 {[%clk 0:02:58.6]} 9... Bd7 {[%clk 0:02:57.2]}
10. O-O-O {[%clk 0:02:58.5]} 10... Rc8 {[%clk 0:02:50.5]} 11. g4 {[%clk
0:02:43.7]} 11... h5 {[%clk 0:02:46.3]} 12. g5 {[%clk 0:02:42.7]} 12... Ng4
{[%clk 0:02:46.3]} 13. Bg1 {[%clk 0:02:42.7]} 13... Nxd4 {[%clk 0:02:44.2]} 14.
Rxd4 {[%clk 0:02:36.7]} 14... e5 {[%clk 0:02:43.9]} 15. Rc4 {[%clk 0:02:30.1]}
15... Qd8 {[%clk 0:02:20.2]} 16. Nd5 {[%clk 0:02:11]} 16... exf4 {[%clk
0:02:13.6]} 17. Qxf4 {[%clk 0:02:00.5]} 17... Bc6 {[%clk 0:01:59.9]} 18. Bb6
{[%clk 0:01:47]} 18... Qd7 {[%clk 0:01:59.5]} 19. Bh3 {[%clk 0:01:42.4]} 19...
Be7 {[%clk 0:01:45.4]} 20. Bd4 {[%clk 0:01:09.2]} 20... O-O {[%clk 0:01:42.2]}
21. Kb1 {[%clk 0:00:54.1]} 21... Bxd5 {[%clk 0:01:33.1]} 22. Rxc8 {[%clk
0:00:54.2]} 22... Ba2+ {[%clk 0:01:31.5]} 23. Kxa2 {[%clk 0:00:52.4]} 23... Rxc8
{[%clk 0:01:31]} 24. Rf1 {[%clk 0:00:45.4]} 24... Qe6+ {[%clk 0:01:30.7]} 25.
Kb1 {[%clk 0:00:45.6]} 25... Rc4 {[%clk 0:01:24.9]} 26. c3 {[%clk 0:00:37.7]}
26... b5 {[%clk 0:01:23.9]} 27. Bg2 {[%clk 0:00:16.3]} 27... a5 {[%clk
0:01:13.8]} 28. h3 {[%clk 0:00:14.9]} 28... Ne5 {[%clk 0:01:13.8]} 29. Qd2
{[%clk 0:00:08.4]} 29... b4 {[%clk 0:00:57.8]} 30. axb4 {[%clk 0:00:07.6]} 30...
axb4 {[%clk 0:00:58.7]} 31. cxb4 {[%clk 0:00:07.5]} 31... Bxg5 {[%clk
0:00:40.7]} 32. Qxg5 {[%clk 0:00:05.2]} 32... Rxd4 {[%clk 0:00:40.5]} 33. b5
{[%clk 0:00:02.8]} 33... Rb4 {[%clk 0:00:38.7]} 34. b6 {[%clk 0:00:01.8]} 34...
Nd3 {[%clk 0:00:29.7]} 0-1